[Event "CZE-ch Youth B12 2022"]
[Site "Luhacovice"]
[Date "2022.03.12"]
[Round "1.10"]
[White "Ruzicka, Oto"]
[Black "Kutil, Adam"]
[Result "0-1"]
[ECO "C31"]
[WhiteElo "1233"]
[BlackElo "1544"]
[Annotator "NA"]
[PlyCount "78"]
[EventDate "2022.03.12"]
[EventType "swiss"]
[EventCountry "CZE"]
[SourceTitle "playchess.com"]
[Source "ChessBase"]
[SourceQuality "1"]
[TimeControl "5400+30"]

1. e4 {[%emt 0:00:13]} e5 {[%emt 0:00:16]} 2. f4 {[%emt 0:00:21]} d5 {[%emt 0:00:35]} 3. exd5 {[%emt 0:00:49]} e4 {[%emt 0:00:35]} 4. Nc3 {[%emt 0:01:09]} Nf6 {[%emt 0:00:58]} 5. Bc4 {[%emt 0:01:05]} Bf5 {[%emt 0:04:34]} 6. d3 {[%emt 0:03:05]} exd3 {[%emt 0:01:47]} 7. Bxd3 {[%emt 0:01:25]} Bg6 {[%emt 0:08:11]} 8. Nf3 {[%emt 0:06:04]} Bb4 {[%emt 0:05:10]} 9. O-O {[%emt 0:13:25]} O-O {[%emt 0:01:25]} 10. f5 {[%emt 0:05:14]} Bh5 {[%emt 0:00:44]} 11. Bg5 {[%emt 0:01:15]} Qd6 {[%emt 0:10:16]} 12. a3 {[%emt 0:06:50]} Bxc3 {[%emt 0:05:07]} 13. bxc3 {[%emt 0:01:19]} Nxd5 {[%emt 0:01:06]} 14. Qd2 {[%emt 0:00:51]} Qc5+ {[%emt 0:02:40]} 15. Kh1 {[%emt 0:03:43]} Qxc3 {[%emt 0:03:50]} 16. Qe2 {[%emt 0:05:30]} Nd7 {[%emt 0:03:50]} 17. Rfe1 {[%emt 0:04:46]} N7f6 {[%emt 0:07:02]} 18. Qf2 {[%emt 0:06:41]} Rfe8 {[%emt 0:05:38]} 19. Ng1 {[%emt 0:06:07]} Rxe1 {[%emt 0:04:35]} 20. Qxe1 {[%emt 0:04:35]} Qxe1 {[%emt 0:01:19]} 21. Rxe1 {[%emt 0:00:24]} Ng4 {[%emt 0:00:32]} 22. Nh3 {[%emt 0:03:05]} f6 {[%emt 0:03:28]} 23. Bd2 {[%emt 0:01:13]} Ne5 {[%emt 0:01:49]} 24. Bb5 {[%emt 0:01:59]} c6 {[%emt 0:04:02]} 25. Ba4 {[%emt 0:00:54]} Bg4 {[%emt 0:03:05]} 26. Nf4 {[%emt 0:04:26]} Bxf5 {[%emt 0:02:01]} 27. Bb3 {[%emt 0:00:36]} Rd8 {[%emt 0:00:52]} 28. Bc3 {[%emt 0:01:38]} Nf7 {[%emt 0:01:19]} 29. Nxd5 {[%emt 0:01:01]} cxd5 {[%emt 0:00:17]} 30. Bxd5 {[%emt 0:00:41]} Bxc2 {[%emt 0:01:46]} 31. Bxb7 {[%emt 0:00:13]} Ne5 {[%emt 0:03:57]} 32. h3 {[%emt 0:01:36]} Nd3 {[%emt 0:03:46]} 33. Re2 {[%emt 0:02:48]} Ba4 {[%emt 0:01:30]} 34. Rd2 {[%emt 0:02:26]} Bb5 {[%emt 0:01:04]} 35. Be4 {[%emt 0:01:20]} Kf7 {[%emt 0:02:00]} 36. Bxh7 {[%emt 0:02:07]} g6 {[%emt 0:00:38]} 37. a4 {[%emt 0:03:55]} Ba6 {[%emt 0:02:04]} 38. Re2 {[%emt 0:00:42]} Rd7 {[%emt 0:01:54]} 39. Re4 {[%emt 0:01:40]} Nf2+ {[%emt 0:00:29]} 0-1

[Event "CZE-ch Youth B12 2022"]
[Site "Luhacovice"]
[Date "2022.03.12"]
[Round "1.11"]
[White "Mikulka, Martin Michael"]
[Black "Jansky, Adam"]
[Result "1-0"]
[ECO "C88"]
[WhiteElo "1406"]
[BlackElo "1233"]
[Annotator "NA"]
[PlyCount "107"]
[EventDate "2022.03.12"]
[EventType "swiss"]
[EventCountry "CZE"]
[SourceTitle "playchess.com"]
[Source "ChessBase"]
[SourceQuality "1"]
[TimeControl "5400+30"]

1. e4 {[%emt 0:00:04]} e5 {[%emt 0:00:04]} 2. Nf3 {[%emt 0:00:05]} Nc6 {[%emt 0:00:05]} 3. Bb5 {[%emt 0:00:05]} a6 {[%emt 0:00:07]} 4. Ba4 {[%emt 0:00:06]} Nf6 {[%emt 0:00:05]} 5. O-O {[%emt 0:00:08]} b5 {[%emt 0:00:04]} 6. Bb3 {[%emt 0:00:06]} Be7 {[%emt 0:00:05]} 7. Re1 {[%emt 0:00:09]} O-O {[%emt 0:00:09]} 8. d4 {[%emt 0:00:06]} exd4 {[%emt 0:03:27]} 9. e5 {[%emt 0:00:08]} Ne8 {[%emt 0:02:22]} 10. c3 {[%emt 0:00:18]} d6 {[%emt 0:01:33]} 11. cxd4 {[%emt 0:04:03]} Bg4 {[%emt 0:02:29]} 12. Bd5 {[%emt 0:01:46]} Qd7 {[%emt 0:01:25]} 13. h3 {[%emt 0:07:56]} Be6 {[%emt 0:01:48]} 14. Be4 {[%emt 0:07:31]} Bf5 {[%emt 0:00:39]} 15. Qe2 {[%emt 0:11:42]} d5 {[%emt 0:02:40]} 16. Bxf5 {[%emt 0:00:45]} Qxf5 {[%emt 0:00:13]} 17. Bd2 {[%emt 0:02:30]} b4 {[%emt 0:01:05]} 18. a3 {[%emt 0:03:44]} g6 {[%emt 0:02:35]} 19. Rc1 {[%emt 0:02:13]} Qd7 {[%emt 0:01:30]} 20. axb4 {[%emt 0:00:11]} Nxb4 {[%emt 0:01:25]} 21. Bxb4 {[%emt 0:00:44]} Bxb4 {[%emt 0:00:09]} 22. Rxa6 {[%emt 0:00:30]} Ng7 {[%emt 0:00:26]} 23. Rac6 {[%emt 0:05:02]} Ne6 {[%emt 0:02:39]} 24. Nbd2 {[%emt 0:01:32]} Ra2 {[%emt 0:05:00]} 25. R6c2 {[%emt 0:07:02]} Rfa8 {[%emt 0:06:07]} 26. Nf1 {[%emt 0:01:48]} Ra1 {[%emt 0:07:38]} 27. Ne3 {[%emt 0:01:51]} f5 {[%emt 0:05:14]} 28. exf6 {[%emt 0:07:26]} Qf7 {[%emt 0:06:14]} 29. Nxd5 {[%emt 0:00:44]} Bd6 {[%emt 0:01:36]} 30. Ne7+ {[%emt 0:00:46]} Kh8 {[%emt 0:01:30]} 31. Qe1 {[%emt 0:03:25]} Rxc1 {[%emt 0:01:03]} 32. Rxc1 {[%emt 0:00:37]} Qxf6 {[%emt 0:00:41]} 33. Nc6 {[%emt 0:02:15]} Nf4 {[%emt 0:03:32]} 34. Qe4 {[%emt 0:04:25]} Qf8 {[%emt 0:04:43]} 35. Nce5 {[%emt 0:01:12]} Ra4 {[%emt 0:02:11]} 36. Qc2 {[%emt 0:01:12]} Bxe5 {[%emt 0:00:53]} 37. Qxa4 {[%emt 0:01:59]} Ne2+ {[%emt 0:00:45]} 38. Kf1 {[%emt 0:00:23]} Nxc1 {[%emt 0:00:08]} 39. Nxe5 {[%emt 0:00:55]} Kg7 {[%emt 0:02:34]} 40. Qd7+ {[%emt 0:00:20]} Kg8 {[%emt 0:00:56]} 41. Qd5+ {[%emt 0:01:01]} Kg7 {[%emt 0:00:45]} 42. Qc4 {[%emt 0:01:43]} Qf4 {[%emt 0:00:39]} 43. Qxc7+ {[%emt 0:00:09]} Kg8 {[%emt 0:00:39]} 44. Qd8+ {[%emt 0:02:21]} Kg7 {[%emt 0:00:22]} 45. Qe7+ {[%emt 0:00:11]} Kg8 {[%emt 0:00:21]} 46. Qe6+ {[%emt 0:00:09]} Kg7 {[%emt 0:00:25]} 47. Ng4 {[%emt 0:01:54]} g5 {[%emt 0:03:40]} 48. Qe5+ {[%emt 0:00:12]} Qxe5 {[%emt 0:00:26]} 49. Nxe5 {[%emt 0:00:22]} Nb3 {[%emt 0:00:08]} 50. Nf3 {[%emt 0:00:24]} Kf6 {[%emt 0:00:19]} 51. Ke2 {[%emt 0:00:07]} Kf5 {[%emt 0:00:33]} 52. Ke3 {[%emt 0:00:46]} h6 {[%emt 0:00:23]} 53. d5 {[%emt 0:00:36]} h5 {[%emt 0:00:16]} 54. Nd4+ {[%emt 0:00:08]} 1-0

[Event "CZE-ch Youth B12 2022"]
[Site "Luhacovice"]
[Date "2022.03.12"]
[Round "1.12"]
[White "Kozdon, Marek"]
[Black "Chon, Jeremy"]
[Result "1/2-1/2"]
[ECO "D02"]
[WhiteElo "1183"]
[BlackElo "1455"]
[Annotator "NA RC"]
[PlyCount "183"]
[EventDate "2022.03.12"]
[EventType "swiss"]
[EventCountry "CZE"]
[SourceTitle "playchess.com"]
[Source "ChessBase"]
[SourceQuality "1"]
[TimeControl "5400+30"]

1. d4 {[%emt 0:00:04]} d5 {[%emt 0:00:01]} 2. Nf3 {[%emt 0:00:14]} e6 {[%emt 0:00:02]} 3. c4 {[%emt 0:00:46]} f5 {[%emt 0:00:04]} 4. Nc3 {[%emt 0:00:47]} Nf6 {[%emt 0:00:02]} 5. Bf4 {[%emt 0:01:40]} Bd6 {[%emt 0:00:50]} 6. Bxd6 {[%emt 0:06:55]} Qxd6 {[%emt 0:00:32]} 7. e3 {[%emt 0:03:19]} c6 {[%emt 0:02:24]} 8. Be2 {[%emt 0:02:35]} Nbd7 {[%emt 0:00:25]} 9. O-O {[%emt 0:01:09]} O-O {[%emt 0:00:20]} 10. Qc2 {[%emt 0:02:03]} Ne4 {[%emt 0:00:44]} 11. Rac1 {[%emt 0:01:59]} Rf6 {[%emt 0:01:27]} 12. cxd5 {[%emt 0:08:43]} exd5 {[%emt 0:00:09]} 13. h3 {[%emt 0:09:38]} Rh6 {[%emt 0:02:12]} 14. Bd3 {[%emt 0:11:01]} Qf6 {[%emt 0:05:35]} 15. a4 {[%emt 0:01:36]} g5 {[%emt 0:11:53]} 16. Nh2 {[%emt 0:08:32]} Qe7 {[%emt 0:14:39]} 17. Nxe4 {[%emt 0:01:52]} fxe4 {[%emt 0:03:57]} 18. Ng4 {[%emt 0:00:58]} Rg6 {[%emt 0:00:36]} 19. Be2 {[%emt 0:00:17]} h5 {[%emt 0:04:31]} 20. Nh2 {[%emt 0:00:33]} Nf6 {[%emt 0:01:25]} 21. Qc5 {[%emt 0:03:15]} Qe6 {[%emt 0:02:39]} 22. Qa5 {[%emt 0:03:05]} Qd7 {[%emt 0:05:04]} 23. Qc5 {[%emt 0:07:26]} g4 {[%emt 0:07:54]} 24. h4 {[%emt 0:01:50]} Qe6 {[%emt 0:04:53]} 25. b4 {[%emt 0:03:57]} Bd7 {[%emt 0:04:52]} 26. g3 {[%emt 0:02:43]} Kh8 {[%emt 0:01:29]} 27. a5 {[%emt 0:01:27]} Rgg8 {[%emt 0:00:57]} 28. Kg2 {[%emt 0:01:21]} Rgc8 {[%emt 0:00:41]} 29. Kg1 {[%emt 0:02:02]} Kg8 {[%emt 0:03:21]} 30. Rc2 {[%emt 0:02:29]} Be8 {[%emt 0:02:23]} 31. Bd1 {[%emt 0:00:31]} Nd7 {[%emt 0:00:55]} 32. Qc3 {[%emt 0:00:21]} Qd6 {[%emt 0:02:28]} 33. Rb2 {[%emt 0:01:58]} b6 {[%emt 0:04:30]} 34. Ba4 {[%emt 0:00:48]} b5 {[%emt 0:02:38]} 35. Bb3 {[%emt 0:00:38]} Nb8 {[%emt 0:00:36]} 36. Rc1 {[%emt 0:00:48]} Na6 {[%emt 0:00:16]} 37. Ba2 {[%emt 0:00:17]} Rc7 {[%emt 0:00:50]} 38. Nf1 {[%emt 0:02:00]} Kh8 {[%emt 0:02:20]} 39. Nd2 {[%emt 0:00:30]} Rac8 {[%emt 0:00:28]} 40. Nb1 {[%emt 0:00:59]} Rf7 {[%emt 0:01:39]} 41. Na3 {[%emt 0:00:25]} Bd7 {[%emt 0:00:28]} 42. Nc2 {[%emt 0:00:26]} Rcf8 {[%emt 0:00:31]} 43. Ne1 {[%emt 0:00:28]} Qg6 {[%emt 0:01:48]} 44. Ng2 {[%emt 0:00:45]} Rf3 {[%emt 0:01:35]} 45. Bb3 {[%emt 0:00:58]} Qe6 {[%emt 0:01:26]} 46. Bd1 {[%emt 0:00:36]} R3f7 {[%emt 0:01:09]} 47. Nf4 {[%emt 0:01:58]} Qh6 {[%emt 0:00:28]} 48. Qd2 {[%emt 0:01:33]} Rf5 {[%emt 0:00:17]} 49. Kh2 {[%emt 0:01:11]} Qd6 {[%emt 0:00:16]} 50. Kg1 {[%emt 0:00:30]} Be8 {[%emt 0:00:56]} 51. Kf1 {[%emt 0:00:44]} Nc7 {[%emt 0:00:46]} 52. Kg1 {[%emt 0:00:33]} Ne6 {[%emt 0:00:31]} 53. Nxe6 {[%emt 0:00:16]} Qxe6 {[%emt 0:00:18]} 54. Qe1 {[%emt 0:00:39]} Qd6 {[%emt 0:00:41]} 55. Rc5 {[%emt 0:01:05]} Bd7 {[%emt 0:00:25]} 56. Rcc2 {[%emt 0:00:39]} Qf6 {[%emt 0:01:06]} 57. Rd2 {[%emt 0:00:22]} Qd8 {[%emt 0:00:55]} 58. Rdc2 {[%emt 0:00:34]} Qc7 {[%emt 0:00:22]} 59. Qf1 {[%emt 0:00:28]} Qd6 {[%emt 0:00:21]} 60. Qe1 {[%emt 0:00:29]} Qe6 {[%emt 0:00:14]} 61. Rd2 {[%emt 0:00:32]} Rg8 {[%emt 0:00:39]} 62. Rdc2 {[%emt 0:00:25]} Qe7 {[%emt 0:00:28]} 63. Rc5 {[%emt 0:00:18]} Qe6 {[%emt 0:00:49]} 64. Rcc2 {[%emt 0:00:19]} Qf6 {[%emt 0:01:05]} 65. Rd2 {[%emt 0:00:14]} Qd8 {[%emt 0:00:27]} 66. Rdc2 {[%emt 0:00:17]} Qe7 {[%emt 0:00:17]} 67. Rc5 {[%emt 0:00:28]} a6 {[%emt 0:00:04]} 68. Rcc2 {[%emt 0:00:09]} Rff8 {[%emt 0:00:20]} 69. Rd2 {[%emt 0:00:31]} Rb8 {[%emt 0:00:49]} 70. Bb3 {[%emt 0:00:20]} Rgc8 {[%emt 0:00:30]} 71. Rdc2 {[%emt 0:00:32]} Qf6 {[%emt 0:00:16]} 72. Qe2 {[%emt 0:00:33]} Qf3 {[%emt 0:00:41]} 73. Qxf3 {[%emt 0:00:19]} gxf3 {[%emt 0:00:07]} 74. Rc1 {[%emt 0:00:31]} Rg8 {[%emt 0:00:13]} 75. Kh2 {[%emt 0:00:12]} Rg6 {[%emt 0:00:48]} 76. Rbc2 {[%emt 0:00:41]} Rd6 {[%emt 0:00:39]} 77. Rc5 {[%emt 0:00:11]} Rg8 {[%emt 0:00:08]} 78. Ba2 {[%emt 0:00:41]} Kg7 {[%emt 0:00:50]} 79. Bb3 {[%emt 0:00:27]} Kf6 {[%emt 0:00:09]} 80. Ba2 {[%emt 0:00:30]} Ke7 {[%emt 0:00:21]} 81. Bb3 {[%emt 0:00:12]} Rdg6 {[%emt 0:00:46]} 82. Rg1 {[%emt 0:00:16]} Kd6 {[%emt 0:00:34]} 83. Ba2 {[%emt 0:00:24]} Be8 {[%emt 0:01:32]} 84. Bb3 {[%emt 0:00:30]} Rg4 {[%emt 0:00:36]} 85. Ba2 {[%emt 0:00:07]} Bd7 {[%emt 0:00:22]} 86. Rcc1 {[%emt 0:00:49]} Bc8 {[%emt 0:00:37]} 87. Bb3 {[%emt 0:00:23]} Bb7 {[%emt 0:00:03]} 88. Rc5 {[%emt 0:00:14]} Rc8 {[%emt 0:00:09]} 89. Ba2 {[%emt 0:00:10]} Rgg8 {[%emt 0:00:11]} 90. Rgc1 {[%emt 0:00:12]} Rg7 {[%emt 0:00:20]} 91. Bb3 {[%emt 0:00:12]} Rgc7 {[%emt 0:00:13]} 92. Ba2 {[%emt 0:00:16]} 1/2-1/2

[Event "CZE-ch Youth B12 2022"]
[Site "Luhacovice"]
[Date "2022.03.13"]
[Round "2.1"]
[White "Mik, Tomas"]
[Black "Delgerdalai, Bayarjavkhlan"]
[Result "1/2-1/2"]
[ECO "B90"]
[WhiteElo "1643"]
[BlackElo "2074"]
[Annotator "NA"]
[PlyCount "97"]
[EventDate "2022.03.12"]
[EventType "swiss"]
[EventCountry "CZE"]
[SourceTitle "playchess.com"]
[Source "ChessBase"]
[SourceQuality "1"]
[TimeControl "5400+30"]

1. e4 c5 2. Nf3 d6 3. d4 cxd4 4. Nxd4 Nf6 5. Nc3 a6 6. Be3 e5 7. Nb3 Be6 8. Be2 Be7 9. O-O Nbd7 10. f4 Qc7 11. Kh1 (11. f5 $5 {[%cal Rf5e6]} Bc4 12. Bxc4 Qxc4 13. Qf3 $11) 11... O-O 12. f5 Bc4 13. g4 $14 d5 14. Nxd5 Nxd5 15. exd5 Nf6 16. Bxc4 Qxc4 17. d6 Bxd6 18. h3 Nd5 19. Qf3 e4 20. Qf2 Nxe3 21. Qxe3 Be5 22. c3 Rad8 23. Rae1 Rd3 24. Qxe4 Rxh3+ 25. Kg2 Rh2+ 26. Kg1 Qxe4 27. Rxe4 Bb8 28. Rf2 Rh4 29. Kg2 h5 30. Kf3 Rh3+ 31. Ke2 h4 32. Rf3 Bg3 33. Nd2 Rd8 34. Nf1 Rh1 35. Nxg3 Rh2+ 36. Ke3 hxg3 37. Rxg3 Rxb2 38. a4 Rc8 39. Kd3 b5 40. axb5 axb5 41. Rge3 Kf8 42. Rd4 Re8 43. Rh3 Ree2 44. Rh8+ Ke7 45. Re4+ Rxe4 46. Kxe4 Rb3 47. Rc8 Kd6 48. g5 b4 49. cxb4 1/2-1/2

[Event "CZE-ch Youth B12 2022"]
[Site "Luhacovice"]
[Date "2022.03.13"]
[Round "2.2"]
[White "Roubal, Matyas"]
[Black "Vana, Jan"]
[Result "1-0"]
[ECO "B31"]
[WhiteElo "1870"]
[BlackElo "1609"]
[Annotator "NA"]
[PlyCount "101"]
[EventDate "2022.03.12"]
[EventType "swiss"]
[EventCountry "CZE"]
[SourceTitle "playchess.com"]
[Source "ChessBase"]
[SourceQuality "1"]
[TimeControl "5400+30"]

1. e4 {[%emt 0:00:06]} c5 {[%emt 0:00:15]} 2. Nf3 {[%emt 0:00:18]} Nc6 {[%emt 0:00:08]} 3. Bb5 {[%emt 0:00:18]} g6 4. O-O {[%emt 0:00:22]} Bg7 {[%emt 0:00:43]} 5. c3 {[%emt 0:00:24]} e5 {[%emt 0:00:45]} 6. d4 {[%emt 0:00:58]} cxd4 {[%emt 0:01:06]} 7. cxd4 {[%emt 0:00:06]} Nxd4 {[%emt 0:01:07]} 8. Nxd4 {[%emt 0:00:35]} exd4 {[%emt 0:00:16]} 9. Bf4 {[%emt 0:04:19]} Ne7 {[%emt 0:03:40]} 10. Nd2 {[%emt 0:05:42]} O-O {[%emt 0:06:19]} 11. Bd6 $14 {[%emt 0:10:48]} Re8 {[%emt 0:08:17]} 12. Qf3 {[%emt 0:08:58]} Nc6 {[%emt 0:14:23]} 13. Bc4 {[%emt 0:04:28]} Qf6 {[%emt 0:06:28]} 14. Qxf6 {[%emt 0:03:03]} Bxf6 {[%emt 0:00:05]} 15. f4 {[%emt 0:00:12]} Be7 {[%emt 0:06:25]} 16. Bxe7 {[%emt 0:03:48]} Nxe7 {[%emt 0:10:07]} 17. Nf3 {[%emt 0:06:34]} Nc6 {[%emt 0:08:35]} 18. e5 {[%emt 0:02:36]} h6 {[%emt 0:06:18]} 19. Rad1 {[%emt 0:03:14]} d6 {[%emt 0:06:37]} 20. exd6 {[%emt 0:02:06]} Bg4 {[%emt 0:04:52]} 21. Bd5 {[%emt 0:13:48]} Be6 {[%emt 0:10:23]} 22. Bxc6 {[%emt 0:07:36]} bxc6 {[%emt 0:00:12]} 23. Rxd4 {[%emt 0:00:37]} Bxa2 {[%emt 0:01:25]} 24. Ne5 {[%emt 0:00:14]} Bd5 {[%emt 0:00:44]} 25. Rc1 {[%emt 0:00:18]} Rab8 {[%emt 0:01:42]} 26. Rd2 {[%emt 0:04:46]} Rbd8 {[%emt 0:02:01]} 27. Nxc6 {[%emt 0:01:12]} Bxc6 {[%emt 0:00:29]} 28. Rxc6 {[%emt 0:00:03]} Rd7 {[%emt 0:00:23]} 29. Kf2 {[%emt 0:00:15]} f5 {[%emt 0:00:36]} 30. Rd5 {[%emt 0:05:16]} Kf7 {[%emt 0:00:36]} 31. g3 {[%emt 0:00:27]} Kf6 {[%emt 0:00:26]} 32. Ra6 {[%emt 0:02:02]} Re6 {[%emt 0:00:35]} 33. h4 {[%emt 0:01:22]} h5 {[%emt 0:00:20]} 34. Rc6 {[%emt 0:00:24]} Re8 {[%emt 0:00:17]} 35. Rd2 {[%emt 0:00:18]} Re6 {[%emt 0:00:47]} 36. b4 {[%emt 0:00:31]} Re8 {[%emt 0:00:29]} 37. Rc7 {[%emt 0:02:11]} Red8 {[%emt 0:00:17]} 38. Rxd7 {[%emt 0:00:07]} Rxd7 {[%emt 0:00:08]} 39. Ra2 {[%emt 0:00:14]} Ke6 {[%emt 0:00:54]} 40. Ke3 {[%emt 0:00:42]} Kxd6 {[%emt 0:00:28]} 41. Ra6+ {[%emt 0:01:25]} Kd5 {[%emt 0:00:44]} 42. Rxg6 {[%emt 0:00:07]} Kc4 {[%emt 0:00:31]} 43. Rg5 {[%emt 0:00:19]} Kxb4 {[%emt 0:00:28]} 44. Rxh5 {[%emt 0:00:22]} Rf7 {[%emt 0:00:38]} 45. Rh8 {[%emt 0:01:34]} a5 {[%emt 0:00:21]} 46. Rb8+ {[%emt 0:00:21]} Kc4 {[%emt 0:00:23]} 47. Rc8+ {[%emt 0:00:07]} Kb3 {[%emt 0:00:34]} 48. Rb8+ {[%emt 0:02:37]} Kc4 {[%emt 0:00:27]} 49. Ra8 {[%emt 0:00:05]} Kb4 {[%emt 0:00:42]} 50. Kd4 {[%emt 0:00:05]} Rd7+ {[%emt 0:00:31]} 51. Ke5 {[%emt 0:00:04]} 1-0

[Event "CZE-ch Youth B12 2022"]
[Site "Luhacovice"]
[Date "2022.03.13"]
[Round "2.4"]
[White "Martirosyan, David"]
[Black "Mikulka, Martin Michael"]
[Result "1/2-1/2"]
[ECO "D95"]
[WhiteElo "1725"]
[BlackElo "1406"]
[Annotator "NA"]
[PlyCount "111"]
[EventDate "2022.03.12"]
[EventType "swiss"]
[EventCountry "CZE"]
[SourceTitle "playchess.com"]
[Source "ChessBase"]
[SourceQuality "1"]
[TimeControl "5400+30"]

1. d4 {[%emt 0:00:00]} Nf6 {[%emt 0:00:18]} 2. Nf3 {[%emt 0:00:00]} g6 {[%emt 0:00:05]} 3. c4 {[%emt 0:00:00]} Bg7 {[%emt 0:00:06]} 4. Nc3 {[%emt 0:00:00]} d5 {[%emt 0:00:06]} 5. e3 {[%emt 0:00:06]} O-O {[%emt 0:00:15]} 6. Qb3 {[%emt 0:00:04]} e6 {[%emt 0:00:53]} 7. Be2 {[%emt 0:00:11]} dxc4 {[%emt 0:00:58]} 8. Bxc4 {[%emt 0:00:07]} b6 {[%emt 0:01:36]} 9. O-O {[%emt 0:01:22]} Bb7 {[%emt 0:00:15]} 10. Be2 {[%emt 0:01:12]} Nbd7 {[%emt 0:01:45]} 11. Qc2 {[%emt 0:01:42]} Qe7 {[%emt 0:01:56]} 12. b3 {[%emt 0:00:48]} c5 {[%emt 0:01:17]} 13. Ba3 {[%emt 0:01:16]} Rac8 {[%emt 0:01:33]} 14. Rac1 {[%emt 0:02:18]} Rfd8 {[%emt 0:00:48]} 15. Rfd1 {[%emt 0:03:04]} Bf8 {[%emt 0:25:01]} 16. Qb1 {[%emt 0:04:13]} Qe8 {[%emt 0:00:40]} 17. dxc5 {[%emt 0:09:49]} Nxc5 {[%emt 0:01:03]} 18. Bb5 {[%emt 0:00:52]} Rxd1+ {[%emt 0:00:34]} 19. Rxd1 {[%emt 0:00:13]} Bc6 {[%emt 0:00:24]} 20. Nd4 {[%emt 0:05:03]} Bxb5 {[%emt 0:00:55]} 21. Ndxb5 {[%emt 0:02:42]} Nce4 {[%emt 0:08:58]} 22. Bxf8 {[%emt 0:08:37]} Nxc3 {[%emt 0:00:20]} 23. Nxc3 {[%emt 0:00:09]} Kxf8 {[%emt 0:01:19]} 24. Qb2 {[%emt 0:04:58]} Rd8 {[%emt 0:02:42]} 25. g3 {[%emt 0:04:49]} Rxd1+ {[%emt 0:00:31]} 26. Nxd1 {[%emt 0:00:09]} Qe7 {[%emt 0:03:12]} 27. Nc3 {[%emt 0:01:50]} Kg8 {[%emt 0:00:22]} 28. h3 {[%emt 0:04:06]} Qd7 {[%emt 0:01:51]} 29. Qc2 {[%emt 0:02:13]} Nd5 {[%emt 0:00:50]} 30. Nxd5 {[%emt 0:02:59]} Qxd5 {[%emt 0:00:08]} 31. e4 {[%emt 0:00:16]} Qa5 {[%emt 0:01:31]} 32. Kg2 {[%emt 0:00:49]} Qa3 {[%emt 0:00:55]} 33. g4 {[%emt 0:02:18]} Qa5 {[%emt 0:00:38]} 34. h4 {[%emt 0:01:54]} Qe5 {[%emt 0:00:35]} 35. f3 {[%emt 0:00:49]} Qf6 {[%emt 0:00:29]} 36. Kg3 {[%emt 0:03:16]} Qe5+ {[%emt 0:00:09]} 37. f4 {[%emt 0:00:46]} Qd4 {[%emt 0:00:06]} 38. Qe2 {[%emt 0:03:27]} Qc3+ {[%emt 0:00:27]} 39. Qf3 {[%emt 0:01:20]} Qe1+ {[%emt 0:00:09]} 40. Kh3 {[%emt 0:00:27]} Qa5 {[%emt 0:00:41]} 41. a4 {[%emt 0:00:31]} Qc5 {[%emt 0:01:05]} 42. e5 {[%emt 0:00:39]} Qc2 {[%emt 0:00:41]} 43. h5 {[%emt 0:01:58]} gxh5 {[%emt 0:01:07]} 44. gxh5 {[%emt 0:00:45]} Qf5+ {[%emt 0:00:38]} 45. Kh4 {[%emt 0:01:05]} h6 {[%emt 0:00:37]} 46. Qg4+ {[%emt 0:03:00]} Qxg4+ {[%emt 0:00:29]} 47. Kxg4 {[%emt 0:00:07]} Kf8 {[%emt 0:00:02]} 48. Kf3 {[%emt 0:01:03]} Ke7 {[%emt 0:00:05]} 49. Ke4 {[%emt 0:00:07]} Kd7 {[%emt 0:00:04]} 50. Kd4 {[%emt 0:00:09]} a6 {[%emt 0:03:21]} 51. b4 {[%emt 0:02:18]} Kc6 {[%emt 0:00:24]} 52. Kc4 {[%emt 0:02:34]} b5+ {[%emt 0:01:05]} 53. axb5+ {[%emt 0:00:22]} axb5+ {[%emt 0:00:04]} 54. Kd4 {[%emt 0:00:07]} Kb6 {[%emt 0:00:22]} 55. f5 {[%emt 0:01:47]} Kc6 {[%emt 0:00:14]} 56. fxe6 {[%emt 0:01:14]} 1/2-1/2